{"text_format":"1","workbook":"xlsx","n_sheets":11,"sheets":["Notice d'utilisation","Depenses 2022","Attestation 2022","Depenses 2023","Attestation 2023","Depenses 2024","Attestation 2024","Depenses 2025","Attestation 2025","Synthèse","Listes"],"not_rendered":{"charts":0,"images":5,"macros":1,"external_links":0,"defined_names":21,"comments":0,"pivot_tables":0},"unopened":[],"bounds":{"document_bytes":16777216,"sheet_cells":100000,"rows_first":2000,"rows_last":500,"rows_between":2000,"halvings":0,"cell_chars":16384,"cell_head_chars":4096},"cells_cut":0,"cells_raw":0,"read":"whole","date_system":"1900"}

{"sheet":"Notice d'utilisation","index":0,"n_rows":25,"n_cols":1,"rows_kept":25,"cut":false,"hidden":false,"merged":[]}
[{"$f":" \"                          Notice d'utilisation\"","v":"                          Notice d'utilisation"}]
["1. Préparer le tableau"]
["Télécharger ce tableur sur votre ordinateur"]
["Le renommer ainsi : \"201_Dépenses_[Nom collectivité]_[année concernée].xlsm\""]
["Procédure de validation des dépenses dans le cadre du programme Slime+"]
["Vous êtes invité.e à lire attentivement le document \"Guide procédure de validation des dépenses dans le cadre du programme Slime+\" annexé à la convention signée avec Cler solutions, qui détaille toutes les règles de validation des dépenses du programme ainsi que les formes de contrôle possibles."]
["2. Compléter les onglets \"Dépenses\" et \"Attestation\" pour l'année concernée"]
["\"Activez les macros\" lors de l'ouverture du fichier"]
["Dans l'onglet \"Dépenses\", remplir toutes les cellules en jaune et menus déroulants en rouge foncé."]
["Dans l'onglet \"Attestation\", remplir toutes les cellules en jaune et menus déroulants en rouge foncé, et renseigner les informations demandées écrites en rouge (bloc M5 / U9). "]
["Instructions spécifiques de remplissage du tableau pour les dépenses d'exploitation (onglets \"Dépenses\"):\n- Colonne \"Détailler dépense si besoin\" : rendre explicite pour votre référent à Cler solutions l'objet de la dépense. Indiquez éventuellement le n° de mandat pour faciliter la validation par le comptable public\n- Colonne \"Date de pièce\" : indiquer la date de la facture ou de la demande de paiement ou de signature de la convention de référence (s'il n'y a pas de facture ni de demande de paiement)\n- Colonne \"N° et/ou type de pièce\" : indiquer le numéro de la facture ou de la convention, ainsi que sa date d'émission ou de signature \n- Colonne \"Date de règlement\" : indiquer la date de règlement du paiement (qui doit correspondre à un mandat de paiement identifiable par le comptable public)\n- Colonne \"Mode de règlement\" : Virement bancaire, chèque, etc.\n- Dans la partie \"Diagnostics sociotechniques et soutien renforcé\", renseigner si possible les dépenses concernant les visites sur une ligne, celles concernant les soutiens renforcés sur une autre ligne, et de même pour les suivis N+1 (si tranche complémentaire retenue), les médiations (si tranche complémentaire retenue), ainsi que les déplacements (frais kilométriques) sur une ou plusieurs lignes (autant que d'attestations signées par agents concernés).\n"]
["Les dépenses d'exploitation dépassant le seuil de sondage s'affichent automatiquement en rouge dans les onglets \"Dépenses\" (plus de détails dans le document \"Guide procédure de validation des dépenses dans le cadre du programme Slime+\")"]
["Les dépenses de personnel dépassant 250€/jour s'affichent automatiquement en rouge dans les onglets \"Dépenses\" (plus de détails dans le document \"Guide procédure de validation des dépenses dans le cadre du programme Slime+\", en annexe de la convention signée avec Cler solutions)"]
["Après échanges préalables avec l'interlocuteur de Cler solutions, lui transmettre la première version stabilisée de ce tableau (sous format .xlsm) au plus tard le 17 janvier de l'année N+1."]
[" Bilan annuel avec votre référent à Cler solutions"]
["3. Faire valider, attester et signer"]
["Envoyer à Cler solutions :\n- la version définitive de ce tableau (sous format .xlsm) au plus tard le 28/02 de l'année N+1 et avant les mises en signature \n-  les pièces justificatives : les factures dont le montant dépasse le seuil de sondage (qui s'affichent en rouge dans l'onglet \"Dépenses\") et les éventuelles attestations sur l'honneur concernant les frais kilométriques (signées par les agents concernés)."]
["Cler solutions fera parvenir au référent du Slime la version PDF finale de l'onglet \"Attestation\" à mettre à la signature"]
["Faire signer et cacheter ce PDF par l'élu.e ou personne avec délégation de signature en charge du dispositif"]
["Faire signer et cacheter ce PDF par le.la comptable public afin qu'il.elle certifie les dépenses de frais directs uniquement (pas les dépenses de personnel)"]
["Faire signer et cacheter ce PDF par le.la responsable dûment habilité.e (DGA ou DGS, par exemple) afin qu'il.elle atteste le temps comptabilisé sur le dispositif Slime pour l'ensemble des agents mentionnés dans le récapitulatif de dépenses pour l'année concernée "]
["4. Transmettre les éléments à Cler solutions"]
["Envoyer le fichier PDF \"Attestation\" de l'année concernée signé par toutes les parties par email (sous format .pdf ou.jpg) au plus tard le 15/03 de l'année N+1. Le fichier doit être lisible et de bonne qualité.\n Il n'est pas nécessaire d'envoyer l'onglet \"Dépenses\" associé."]
["Email de votre interlocuteur à Cler solutions ou à défaut à slime@cler.org"]
["Pour toute question, merci de contacter votre référent à Cler solutions ou d'envoyer un courriel à slime@cler.org"]

{"sheet":"Depenses 2022","index":1,"n_rows":80,"n_cols":11,"rows_kept":80,"cut":false,"hidden":false,"merged":[[2,6,3,6],[55,6,55,7],[47,1,47,3],[48,1,48,3],[37,6,37,7],[39,6,39,7],[40,6,40,7],[36,6,36,7],[41,3,41,5],[54,3,54,5],[43,3,43,5],[51,3,51,5],[52,3,52,5],[53,3,53,5],[44,0,44,9],[42,3,42,5],[37,3,37,5],[39,3,39,5],[40,3,40,5],[20,3,20,5],[38,3,38,5],[38,6,38,7],[36,3,36,5],[45,5,45,6],[50,1,50,3],[65,10,68,10],[66,6,66,7],[67,6,67,7],[68,6,68,7],[65,3,65,5],[66,3,66,5],[67,3,67,5],[58,1,58,3],[59,1,59,3],[60,1,60,3],[61,1,61,3],[62,1,62,3],[63,1,63,3],[2,0,3,0],[46,5,46,6],[47,5,47,6],[48,5,48,6],[49,5,49,6],[49,1,49,3],[31,5,31,6],[32,5,32,6],[70,1,70,3],[41,6,41,7],[42,6,42,7],[43,6,43,7],[35,6,35,7],[46,1,46,3],[35,3,35,5],[45,1,45,3],[50,5,50,6],[58,5,58,6],[59,5,59,6],[60,5,60,6],[61,5,61,6],[62,5,62,6],[63,5,63,6],[54,6,54,7],[12,6,12,7],[69,0,69,9],[2,7,3,7],[2,8,3,8],[13,3,13,5],[13,6,13,7],[15,3,15,5],[16,3,16,5],[17,3,17,5],[18,3,18,5],[15,6,15,7],[16,6,16,7],[17,6,17,7],[5,1,5,3],[6,1,6,3],[7,1,7,3],[8,1,8,3],[9,1,9,3],[10,1,10,3],[11,3,11,5],[12,3,12,5],[14,3,14,5],[4,0,4,9],[5,5,5,6],[33,6,33,7],[2,1,3,5],[79,0,79,9],[0,0,0,10],[1,0,1,10],[71,10,75,10],[65,6,65,7],[68,3,68,5],[56,0,56,9],[59,10,63,10],[64,6,64,7],[57,0,57,9],[64,3,64,5],[55,3,55,5],[46,10,50,10],[51,6,51,7],[52,6,52,7],[52,10,55,10],[53,6,53,7],[34,10,43,10],[14,6,14,7],[20,6,20,7],[21,6,21,7],[11,6,11,7],[24,5,24,6],[12,10,21,10],[78,0,78,9],[77,1,77,9],[71,1,71,3],[72,1,72,3],[73,1,73,3],[74,1,74,3],[75,1,75,3],[76,0,76,9],[26,1,26,3],[27,1,27,3],[28,1,28,3],[29,1,29,3],[30,1,30,3],[70,5,70,6],[71,5,71,6],[72,5,72,6],[73,5,73,6],[74,5,74,6],[75,5,75,6],[33,3,33,5],[34,3,34,5],[34,6,34,7],[6,10,10,10],[18,6,18,7],[19,6,19,7],[25,5,25,6],[26,5,26,6],[27,5,27,6],[28,5,28,6],[29,5,29,6],[30,5,30,6],[24,10,32,10],[21,3,21,5],[22,0,22,9],[31,1,31,3],[32,1,32,3],[6,5,6,6],[7,5,7,6],[8,5,8,6],[9,5,9,6],[10,5,10,6],[19,3,19,5],[23,1,23,3],[24,1,24,3],[25,1,25,3],[23,5,23,6]]}
[{"$f":" \"                                                                Récapitulatif des dépenses \"  & B3 & \" - \" & H3","v":"                                                                Récapitulatif des dépenses  - 2022"}]
["Merci de détailler l'ensemble des frais et du temps pour les actions d'animation, la réalisation des diagnostics sociotechniques et soutiens renforcés, l'évaluation ainsi que les formations et l'accompagnement méthodologique."]
["Collectivité",null,null,null,null,null,"Année",2022,"Période","du (JJ/MM/AAAA):"]
[null,null,null,null,null,null,null,null,null,"au (JJ/MM/AAAA):"]
["1. Coordination du dispositif et animation territoriale",null,null,null,null,null,null,null,null,null,{"$f":"K7+K13","v":0}]
["Dépenses d'exploitation (Frais directs)","détailler dépense si besoin",null,null,"Date de pièce","N° et/ou type de pièce",null,"Date de règlement","Mode de règlement","Montant (€TTC)"]
[null,null,null,null,null,null,null,null,null,null,{"$f":"SUM(J7:J11)","v":0}]
[]
[]
[]
[]
["Dépenses de personnel (Moyens humains)","détailler dépense si besoin","Type de coût","Intitulé de poste",null,null,"Prénom NOM",null,"Temps passé (jours)","Coût journalier (€)"]
[null,null,null,null,null,null,null,null,null,null,{"$f":"SUMPRODUCT(I13:I22,J13:J22)","v":0}]
[]
[]
[]
[]
[]
[]
[]
[]
[]
["2. Diagnostics socio-techniques et soutien renforcé",null,null,null,null,null,null,null,null,null,{"$f":"K25+K35","v":0}]
["Dépenses d'exploitation (Frais directs)","détailler dépense si besoin (notamment indemnité/km et nombre de km pour les déplacements)",null,null,"Date de pièce","N° et/ou type de pièce",null,"Date de règlement","Mode de règlement","Montant (€TTC)"]
[null,null,null,null,null,null,null,null,null,null,{"$f":"SUM(J25:J33)","v":0}]
[]
[]
[]
[]
[]
[]
[]
[]
["Dépenses de personnel (Moyens humains)","détailler dépense si besoin","Type de coût","Intitulé de poste",null,null,"Prénom NOM",null,"Temps passé (jours)","Coût journalier (€)"]
[null,null,null,null,null,null,null,null,null,null,{"$f":"SUMPRODUCT(I35:I44,J35:J44)","v":0}]
[]
[]
[]
[]
[]
[]
[]
[]
[]
["3. Evaluation",null,null,null,null,null,null,null,null,null,{"$f":"K47+K53","v":0}]
["Dépenses d'exploitation (Frais directs)","détailler dépense si besoin",null,null,"Date de pièce","N° et/ou type de pièce",null,"Date de règlement","Mode de règlement","Montant (€TTC)"]
[null,null,null,null,null,null,null,null,null,null,{"$f":"SUM(J47:J51)","v":0}]
[]
[]
[]
[]
["Dépenses de personnel (Moyens humains)","détailler dépense si besoin","Type de coût","Intitulé de poste",null,null,"Prénom NOM",null,"Temps passé (jours)","Coût journalier (€)"]
[null,null,null,null,null,null,null,null,null,null,{"$f":"SUMPRODUCT(I53:I56,J53:J56)","v":0}]
[]
[]
[]
["4. Formations et accompagnement méthodologique",null,null,null,null,null,null,null,null,null,{"$f":"K58+K70","v":0}]
["4.1 Formations",null,null,null,null,null,null,null,null,null,{"$f":"K60+K66","v":0}]
["Dépenses d'exploitation (Frais directs)","détailler dépense si besoin",null,null,"Date de pièce","N° et/ou type de pièce",null,"Date de règlement","Mode de règlement","Montant (€TTC)"]
[null,null,null,null,null,null,null,null,null,null,{"$f":"SUM(J60:J64)","v":0}]
[]
[]
[]
[]
["Dépenses de personnel (Moyens humains)","détailler dépense si besoin","Type de coût","Intitulé de poste",null,null,"Prénom NOM",null,"Temps passé (jours)","Coût journalier (€)"]
[null,null,null,null,null,null,null,null,null,null,{"$f":"SUMPRODUCT(I66:I69,J66:J69)","v":0}]
[]
[]
[]
["4.2 Accompagnement méthodologique",null,null,null,null,null,null,null,null,null,{"$f":"K72","v":0}]
["Dépenses d'exploitation (Frais directs)","détailler dépense si besoin",null,null,"Date de pièce","N° et/ou type de pièce",null,"Date de règlement","Mode de règlement","Montant (€TTC)"]
[null,null,null,null,null,null,null,null,null,null,{"$f":"SUM(J72:J76)","v":0}]
[]
[]
[]
[]
["Total des dépenses de personnel (TTC)",null,null,null,null,null,null,null,null,null,{"$f":"K13+K35+K53+K66","v":0}]
["Coûts connexes",0.25,null,null,null,null,null,null,null,null,{"$f":"B78*(K77)","v":0}]
["Total des dépenses réalisées par la collectivité (TTC)",null,null,null,null,null,null,null,null,null,{"$f":"K5+K23+K45+K57","v":0}]
["Total des dépenses éligibles à un co-financement par le programme Slime (TTC)",null,null,null,null,null,null,null,null,null,{"$f":"K5+K23+K45+K57+K78","v":0}]

{"sheet":"Attestation 2022","index":2,"n_rows":37,"n_cols":23,"rows_kept":37,"cut":false,"hidden":false,"merged":[[14,12,16,20],[14,0,14,6],[12,0,12,6],[13,0,13,6],[16,9,17,10],[17,12,22,16],[16,0,17,6],[16,7,17,8],[20,0,20,10],[21,0,22,8],[17,17,17,20],[15,0,15,6],[18,17,22,20],[8,12,8,20],[9,12,12,16],[5,7,5,9],[8,0,8,10],[9,0,9,6],[10,0,10,6],[11,0,11,6],[7,0,7,6],[7,7,7,10],[9,17,9,20],[10,17,12,20],[32,1,32,2],[34,0,34,2],[27,1,27,2],[28,1,28,2],[29,1,29,2],[30,1,30,2],[0,0,0,20],[4,2,4,6],[1,0,1,10],[2,2,2,6],[2,7,3,9],[2,10,3,10],[2,0,2,1],[3,0,4,0],[3,2,3,6],[4,7,4,9],[2,12,3,20],[4,12,7,20],[5,2,5,3],[5,4,5,6],[6,0,6,6],[6,7,6,10],[25,7,25,10],[23,0,23,6],[23,7,23,10],[18,0,18,7],[19,0,19,7],[18,8,18,10],[19,8,19,10],[21,9,22,10],[29,17,29,20],[30,17,36,20],[23,12,24,20],[25,12,25,20],[27,0,32,0],[31,1,31,2],[27,12,28,20],[29,12,36,16],[36,0,36,2],[36,3,36,9],[24,0,24,6],[24,7,24,10],[34,7,34,10],[26,0,26,6],[26,7,26,10],[25,0,25,6]]}
[{"$f":" \"                                                               Attestation \"  & 'Depenses 2022'!D3 & \" \" & 'Depenses 2022'!H3","v":"                                                               Attestation  2022"}]
["Informations générales"]
["Nom de la collectivité ",null,{"$f":"'Depenses 2022'!B3","v":0},null,null,null,null,"Année ",null,null,{"$f":"'Depenses 2022'!H3","v":2022},null,"Attestation du.de la responsable dûment habilité.e pour engager légalement la structure",null,null,null,null,null,null,null,null,null,0]
["Période","du :",{"$f":"'Depenses 2022'!K3","v":"00:00:00"}]
[null,"au :",{"$f":"'Depenses 2022'!K4","v":"00:00:00"},null,null,null,null,"1ère année Slime",null,null,"OUI",null,"Je, soussigné.e [élu.e en charge du dispositif], déclare que la totalité des actions et les dépenses reportées dans la synthèse ci-contre et détaillées dans l'onglet \"Dépenses\" ont été réalisées par [Nom de la structure] dans le cadre du programme Slime+ sur la période "]
["Type de territoire","Conseil départemental","Plafond maximum de co-financement CEE",null,{"$f":"IF($B$6=\"Conseil Régional\",1900000,0)+IF($B$6=\"Conseil départemental\",800000,0)+IF($B$6=\"Métropole\",800000,0)+IF($B$6=\"Autre type\",400000,0)","v":800000},null,null,"Dispositif pluriannuel",null,null,"OUI"]
[{"$f":" \"Montant de co-financement maximal CEE \" & 'Depenses 2022'!H3","v":"Montant de co-financement maximal CEE 2022"}]
[{"$f":" \"Montant de l'avance \" & 'Depenses 2022'!H3","v":"Montant de l'avance 2022"}]
[{"$f":" \"Forfait \" & K3","v":"Forfait 2022"},null,null,null,null,null,null,null,null,null,null,null,{"$f":" \"du \" & TEXT(C4,\"JJ/MM/AA\") & \" au \" & TEXT(C5,\"JJ/MM/AA\")","v":"du 00/01/00 au 00/01/00"}]
["Base",null,null,null,null,null,null,"Prévisionnel",300,"Réalisé",300,null,"          Fait le:\n\n          A: ",null,null,null,null,"Nom, signature, cachet"]
["DST réalisé en deux visites ou en binôme",null,null,null,null,null,null,"NON",{"$f":"IF(H11=\"OUI\",100,0)","v":0},"NON",{"$f":"IF(J11=\"OUI\",100,0)","v":0}]
["Profil \"expert\"",null,null,null,null,null,null,"NON",0,"NON",{"$f":"IF(J12=\"OUI\",100,0)","v":0}]
["Soutien renforcé (au-dela des 20% minimum)",null,null,null,null,null,null,"NON",{"$f":"IF(H13<>\"NON\",(MID(H13,3,2)*50),0)","v":0},"NON",{"$f":"IF(J13<>\"NON\",(MID(J13,3,2)*50),0)","v":0}]
["Forte articulation avec des dispositifs de type FSATME",null,null,null,null,null,null,"NON",{"$f":"IF(H14=\"OUI\",50,0)","v":0},"NON",{"$f":"IF(J14=\"OUI\",50,0)","v":0}]
["Suivi N+1",null,null,null,null,null,null,"NON",{"$f":"IF(H15=\"OUI\",50,0)","v":0},"NON",{"$f":"IF(J15=\"OUI\",50,0)","v":0},null,"Visa du.de la comptable public.que certifiant le paiement des dépenses d'exploitation figurant dans l'onglet \"Dépenses\" de l'année correspondante au vu des justificatifs produits (à l'exclusion des frais kilométriques non-attestables par le comptable public)"]
["Réalisation d'une médiation",null,null,null,null,null,null,"NON",{"$f":"IF(H16=\"OUI\",100,0)","v":0},"NON",{"$f":"IF(J16=\"OUI\",100,0)","v":0}]
["TOTAL",null,null,null,null,null,null,{"$f":"SUM(I10:I16)","v":300},null,{"$f":"SUM(K10:K16)","v":300}]
[null,null,null,null,null,null,null,null,null,null,null,null,"          Fait le:\n\n          A: ",null,null,null,null,"Nom, signature, cachet"]
["si la collectivité réalise une pré-visite à distance et une visite physique",null,null,null,null,null,null,null,{"$f":"IF(J11=\"NON\",J17+100,J17)","v":400}]
["si la collectivité n'a pu réaliser qu'une viiste à distance",null,null,null,null,null,null,null,{"$f":"IF(J11=\"NON\",J17,J17-100)","v":300}]
["Information relative à la pandémie Covid-19"]
[{"$f":" \"En \" & K3 & \" la collectivité a réalisé des visites à distance:\"","v":"En 2022 la collectivité a réalisé des visites à distance:"},null,null,null,null,null,null,null,null,"NON"]
[]
[{"$f":" \"Nombre de ménages accompagnés - valorisables\"","v":"Nombre de ménages accompagnés - valorisables"},null,null,null,null,null,null,null,null,null,null,null,"Conformément aux instructions précédemment transmises, la collectivité est tenue de transmettre au CLER, en même temps que la présente attestation dument complétée et signée, une copie des pièces justificatives (facture, convention, note de frais, etc.) de chaque dépense d'exploitation dont le montant dépasse:"]
[{"$f":" \"Nombre de ménages accompagnés - total\"","v":"Nombre de ménages accompagnés - total"}]
["dont ménages ayant reçu une pré-visite à distance et une visite physique",null,null,null,null,null,null,null,null,null,null,null,{"$f":"W3","v":0}]
["dont ménages ayant reçu uniquement une visite à distance"]
[{"$f":" \"Activités \" & 'Depenses 2022'!H3","v":"Activités 2022"},"Actions",null,"Frais directs","Moyens humains","Coûts connexes","Total","Assiette dépenses éligibles","Taux de co-financement CEE","Plafonds de co-financement CEE","Total de co-financement CEE",null,"Signature du.de la responsable dûment habilité.e (DGA, DGS, responsable RH) certifiant l'exactitude du temps déclaré sur le projet pour chacun des agents / pour l’ensemble des agents déclarés dans les dépenses de personnel"]
[null,"1. Animation territoriale",null,{"$f":"IF($K$6=\"OUI\",'Depenses 2022'!K7,0)","v":0},{"$f":"IF($K$6=\"OUI\",'Depenses 2022'!K13,0)","v":0},{"$f":"E29*0.25","v":0},{"$f":"D29+E29+F29","v":0},{"$f":"IF($K$5=\"OUI\",50000,25000)","v":50000},{"$f":"IF($K$3=2022,70%,0)+IF($K$3=2023,70%,0)+IF($K$3=2024,60%,0)+IF($K$3=2025,50%,0)","v":0.7},{"$f":"H29*I29","v":35000},{"$f":"IF(G29>H29,J29,G29*I29)","v":0}]
[null,"2. Diagnostics socio-techniques et soutien renforcé",null,{"$f":"'Depenses 2022'!K25","v":0},{"$f":"'Depenses 2022'!K35","v":0},{"$f":"E30*0.25","v":0},{"$f":"D30+E30+F30","v":0},{"$f":"G30","v":0},{"$f":"IF($K$3=2022,70%,0)+IF($K$3=2023,70%,0)+IF($K$3=2024,60%,0)+IF($K$3=2025,50%,0)","v":0.7},{"$f":"IF(J22=\"OUI\",(I19*H26+I20*H27+(H24-H26-H27)*J17),J17*H24)","v":0},{"$f":"IF(J30>(I30*G30),(I30*G30),J30)","v":0},null,"          Fait le:\n\n          A: ",null,null,null,null,"Nom, signature, cachet"]
[null,"3. Evaluation",null,{"$f":"'Depenses 2022'!K47","v":0},{"$f":"'Depenses 2022'!K53","v":0},{"$f":"E31*0.25","v":0},{"$f":"D31+E31+F31","v":0},20000,0.7,{"$f":"H31*I31","v":14000},{"$f":"IF((G31*I31)>J31,J31,G31*I31)","v":0}]
[null,"4.1 Formations",null,{"$f":"'Depenses 2022'!K60","v":0},{"$f":"'Depenses 2022'!K66","v":0},{"$f":"E32*0.25","v":0},{"$f":"D32+E32+F32","v":0},{"$f":"G32","v":0},0.75,"N/A",{"$f":"I32*G32","v":0}]
[null,"4.2 Accompagnement méthodologique",null,{"$f":"'Depenses 2022'!K72","v":0},"-","-",{"$f":"D33","v":0},3333.33,0.75,{"$f":"H33*I33","v":2499.9974999999999},{"$f":"IF((I33*G33)>J33,J33,G33*I33)","v":0}]
[]
[{"$f":" \"Total des dépenses engagées pour la période du \" & TEXT(C4,\"JJ/MM/AA\") & \" au \" & TEXT(C5,\"JJ/MM/AA\")","v":"Total des dépenses engagées pour la période du 00/01/00 au 00/01/00"},null,null,{"$f":"SUM(D29:D33)","v":0},{"$f":"SUM(E29:E32)","v":0},{"$f":"SUM(F29:F32)","v":0},{"$f":"SUM(G29:G33)","v":0}]
[]
[{"$f":" \"Total des co-financements apportés par les CEE du \" & TEXT(C4,\"JJ/MM/AA\") & \" au \" & TEXT(C5,\"JJ/MM/AA\")","v":"Total des co-financements apportés par les CEE du 00/01/00 au 00/01/00"},null,null,null,null,null,null,null,null,null,{"$f":"(IF(E6>H7,IF((SUM(K29:K33))>H7,H7,(SUM(K29:K33))),IF((SUM(K29:K33))>E6,E6,(SUM(K29:K33)))))","v":0}]

{"sheet":"Depenses 2023","index":3,"n_rows":81,"n_cols":11,"rows_kept":81,"cut":false,"hidden":false,"merged":[[77,0,77,9],[78,1,78,9],[79,0,79,9],[80,0,80,9],[72,10,76,10],[73,1,73,3],[74,1,74,3],[75,1,75,3],[76,1,76,3],[73,5,73,6],[74,5,74,6],[75,5,75,6],[76,5,76,6],[70,0,70,9],[71,1,71,3],[72,1,72,3],[65,3,65,5],[65,6,65,7],[66,3,66,5],[66,6,66,7],[71,5,71,6],[72,5,72,6],[66,10,69,10],[67,3,67,5],[67,6,67,7],[68,3,68,5],[68,6,68,7],[69,3,69,5],[60,10,64,10],[61,1,61,3],[62,1,62,3],[63,1,63,3],[64,1,64,3],[61,5,61,6],[62,5,62,6],[63,5,63,6],[64,5,64,6],[69,6,69,7],[57,0,57,9],[58,0,58,9],[59,1,59,3],[60,1,60,3],[52,3,52,5],[52,6,52,7],[53,3,53,5],[53,6,53,7],[59,5,59,6],[60,5,60,6],[53,10,56,10],[54,3,54,5],[54,6,54,7],[55,3,55,5],[55,6,55,7],[56,3,56,5],[47,10,51,10],[48,1,48,3],[49,1,49,3],[50,1,50,3],[51,1,51,3],[48,5,48,6],[49,5,49,6],[50,5,50,6],[51,5,51,6],[56,6,56,7],[45,0,45,9],[46,1,46,3],[47,1,47,3],[40,6,40,7],[41,3,41,5],[41,6,41,7],[42,3,42,5],[42,6,42,7],[43,3,43,5],[43,6,43,7],[46,5,46,6],[47,5,47,6],[34,3,34,5],[34,6,34,7],[35,3,35,5],[35,6,35,7],[30,1,30,3],[31,1,31,3],[32,1,32,3],[35,10,44,10],[36,3,36,5],[36,6,36,7],[37,3,37,5],[37,6,37,7],[38,3,38,5],[38,6,38,7],[39,3,39,5],[39,6,39,7],[40,3,40,5],[44,3,44,5],[44,6,44,7],[24,1,24,3],[24,10,33,10],[25,1,25,3],[28,1,28,3],[29,1,29,3],[24,5,24,6],[25,5,25,6],[28,5,28,6],[29,5,29,6],[30,5,30,6],[31,5,31,6],[32,5,32,6],[33,5,33,6],[33,1,33,3],[27,1,27,3],[27,5,27,6],[26,1,26,3],[26,5,26,6],[22,0,22,9],[23,1,23,3],[16,6,16,7],[17,3,17,5],[17,6,17,7],[18,3,18,5],[18,6,18,7],[19,3,19,5],[19,6,19,7],[23,5,23,6],[11,3,11,5],[11,6,11,7],[4,0,4,9],[5,1,5,3],[6,1,6,3],[12,3,12,5],[12,6,12,7],[12,10,21,10],[13,3,13,5],[13,6,13,7],[14,3,14,5],[14,6,14,7],[15,3,15,5],[15,6,15,7],[16,3,16,5],[20,3,20,5],[20,6,20,7],[21,3,21,5],[21,6,21,7],[6,10,10,10],[7,1,7,3],[8,1,8,3],[7,5,7,6],[8,5,8,6],[9,5,9,6],[10,5,10,6],[9,1,9,3],[10,1,10,3],[0,0,0,10],[1,0,1,10],[2,0,3,0],[2,1,3,5],[2,6,3,6],[2,7,3,7],[2,8,3,8],[5,5,5,6],[6,5,6,6]]}
[{"$f":" \"                                                                Recapitulatif des depenses \"  & B3 & \" - \" & H3","v":"                                                                Recapitulatif des depenses  - 2023"}]
["Merci de detailler l'ensemble des frais et du temps pour les actions d'animation, la realisation des diagnostics sociotechniques et soutiens renforces, l'evaluation ainsi que les formations et l'accompagnement methodologique."]
["Collectivite",null,null,null,null,null,"Annee",2023,"Periode","du (JJ/MM/AAAA):"]
[null,null,null,null,null,null,null,null,null,"au (JJ/MM/AAAA):"]
["1. Coordination du dispositif et animation territoriale",null,null,null,null,null,null,null,null,null,{"$f":"K7+K13","v":0}]
["Depenses d'exploitation (Frais directs)","detailler depense si besoin",null,null,"Date de pièce","N° et/ou type de pièce",null,"Date de règlement","Mode de règlement","Montant (€TTC)"]
[null,null,null,null,null,null,null,null,null,null,{"$f":"SUM(J7:J11)","v":0}]
[]
[]
[]
[]
["Depenses de personnel (Moyens humains)","detailler depense si besoin","Type de coût","Intitule de poste",null,null,"Prenom NOM",null,"Temps passe (jours)","Coût journalier (€)"]
[null,null,null,null,null,null,null,null,null,null,{"$f":"SUMPRODUCT(I13:I22,J13:J22)","v":0}]
[]
[]
[]
[]
[]
[]
[]
[]
[]
["2. Diagnostics socio-techniques et soutien renforce",null,null,null,null,null,null,null,null,null,{"$f":"K25+K36","v":0}]
["Depenses d'exploitation (Frais directs)","detailler depense si besoin (notamment indemnite/km et nombre de km pour les deplacements)",null,null,"Date de pièce","N° et/ou type de pièce",null,"Date de règlement","Mode de règlement","Montant (€TTC)"]
[null,null,null,null,null,null,null,null,null,null,{"$f":"SUM(J25:J34)","v":0}]
[]
[]
[]
[]
[]
[]
[]
[]
[]
["Depenses de personnel (Moyens humains)","detailler depense si besoin","Type de coût","Intitule de poste",null,null,"Prenom NOM",null,"Temps passe (jours)","Coût journalier (€)"]
[null,null,null,null,null,null,null,null,null,null,{"$f":"SUMPRODUCT(I36:I45,J36:J45)","v":0}]
[]
[]
[]
[]
[]
[]
[]
[]
[]
["3. Evaluation",null,null,null,null,null,null,null,null,null,{"$f":"K48+K54","v":0}]
["Depenses d'exploitation (Frais directs)","detailler depense si besoin",null,null,"Date de pièce","N° et/ou type de pièce",null,"Date de règlement","Mode de règlement","Montant (€TTC)"]
[null,null,null,null,null,null,null,null,null,null,{"$f":"SUM(J48:J52)","v":0}]
[]
[]
[]
[]
["Depenses de personnel (Moyens humains)","detailler depense si besoin","Type de coût","Intitule de poste",null,null,"Prenom NOM",null,"Temps passe (jours)","Coût journalier (€)"]
[null,null,null,null,null,null,null,null,null,null,{"$f":"SUMPRODUCT(I54:I57,J54:J57)","v":0}]
[]
[]
[]
["4. Formations et accompagnement methodologique",null,null,null,null,null,null,null,null,null,{"$f":"K59+K71","v":0}]
["4.1 Formations",null,null,null,null,null,null,null,null,null,{"$f":"K61+K67","v":0}]
["Depenses d'exploitation (Frais directs)","detailler depense si besoin",null,null,"Date de pièce","N° et/ou type de pièce",null,"Date de règlement","Mode de règlement","Montant (€TTC)"]
[null,null,null,null,null,null,null,null,null,null,{"$f":"SUM(J61:J65)","v":0}]
[]
[]
[]
[]
["Depenses de personnel (Moyens humains)","detailler depense si besoin","Type de coût","Intitule de poste",null,null,"Prenom NOM",null,"Temps passe (jours)","Coût journalier (€)"]
[null,null,null,null,null,null,null,null,null,null,{"$f":"SUMPRODUCT(I67:I70,J67:J70)","v":0}]
[]
[]
[]
["4.2 Accompagnement methodologique",null,null,null,null,null,null,null,null,null,{"$f":"K73","v":0}]
["Depenses d'exploitation (Frais directs)","detailler depense si besoin",null,null,"Date de pièce","N° et/ou type de pièce",null,"Date de règlement","Mode de règlement","Montant (€TTC)"]
[null,null,null,null,null,null,null,null,null,null,{"$f":"SUM(J73:J77)","v":0}]
[]
[]
[]
[]
["Total des depenses de personnel (TTC)",null,null,null,null,null,null,null,null,null,{"$f":"K13+K36+K54+K67","v":0}]
["Coûts connexes",0.25,null,null,null,null,null,null,null,null,{"$f":"B79*(K78)","v":0}]
["Total des depenses realisees par la collectivite (TTC)",null,null,null,null,null,null,null,null,null,{"$f":"K5+K23+K46+K58","v":0}]
["Total des depenses eligibles à un co-financement par le programme Slime (TTC)",null,null,null,null,null,null,null,null,null,{"$f":"K5+K23+K46+K58+K79","v":0}]

{"sheet":"Attestation 2023","index":4,"n_rows":37,"n_cols":23,"rows_kept":37,"cut":false,"hidden":false,"merged":[[26,0,26,6],[26,7,26,10],[27,0,32,0],[27,1,27,2],[27,12,28,20],[28,1,28,2],[29,1,29,2],[29,12,36,16],[30,1,30,2],[31,1,31,2],[32,1,32,2],[34,0,34,2],[34,7,34,10],[36,0,36,2],[36,3,36,9],[29,17,29,20],[23,12,24,20],[24,0,24,6],[24,7,24,10],[25,0,25,6],[25,7,25,10],[25,12,25,20],[23,0,23,6],[23,7,23,10],[13,0,13,6],[14,0,14,6],[14,12,16,20],[16,0,17,6],[16,7,17,8],[16,9,17,10],[17,12,22,16],[18,0,18,7],[18,8,18,10],[19,0,19,7],[19,8,19,10],[20,0,20,10],[21,0,22,8],[21,9,22,10],[17,17,17,20],[15,0,15,6],[8,0,8,10],[8,12,8,20],[9,0,9,6],[9,12,12,16],[10,0,10,6],[11,0,11,6],[12,0,12,6],[9,17,9,20],[10,17,12,20],[5,7,5,9],[6,0,6,6],[6,7,6,10],[7,0,7,6],[7,7,7,10],[18,17,22,20],[30,17,36,20],[0,0,0,20],[1,0,1,10],[2,0,2,1],[2,2,2,6],[2,7,3,9],[2,10,3,10],[2,12,3,20],[3,0,4,0],[3,2,3,6],[4,2,4,6],[4,7,4,9],[4,12,7,20],[5,2,5,3],[5,4,5,6]]}
[{"$f":" \"                                                               Attestation \"  & 'Depenses 2023'!D3 & \" \" & 'Depenses 2023'!H3","v":"                                                               Attestation  2023"}]
["Informations générales"]
["Nom de la collectivité ",null,{"$f":"'Depenses 2023'!B3","v":0},null,null,null,null,"Année ",null,null,{"$f":"'Depenses 2023'!H3","v":2023},null,"Attestation du.de la responsable dûment habilité.e pour engager légalement la structure",null,null,null,null,null,null,null,null,null,0]
["Période","du :",{"$f":"'Depenses 2023'!K3","v":"00:00:00"}]
[null,"au :",{"$f":"'Depenses 2023'!K4","v":"00:00:00"},null,null,null,null,"1ère année Slime",null,null,"NON",null,"Je, soussigné.e [élu.e en charge du dispositif], déclare que la totalité des actions et les dépenses reportées dans la synthèse ci-contre et détaillées dans l'onglet \"Dépenses\" ont été réalisées par [Nom de la structure] dans le cadre du programme Slime+ sur la période "]
["Type de territoire","Conseil départemental","Plafond maximum de co-financement CEE",null,{"$f":"IF($B$6=\"Conseil Régional\",1900000,0)+IF($B$6=\"Conseil départemental\",800000,0)+IF($B$6=\"Métropole\",800000,0)+IF($B$6=\"Autre type\",400000,0)","v":800000},null,null,"Dispositif pluriannuel",null,null,"OUI"]
[{"$f":" \"Montant de co-financement maximal CEE \" & 'Depenses 2023'!H3","v":"Montant de co-financement maximal CEE 2023"}]
[{"$f":" \"Montant de l'avance \" & 'Depenses 2023'!H3","v":"Montant de l'avance 2023"}]
[{"$f":" \"Forfait \" & K3","v":"Forfait 2023"},null,null,null,null,null,null,null,null,null,null,null,{"$f":" \"du \" & TEXT(C4,\"JJ/MM/AA\") & \" au \" & TEXT(C5,\"JJ/MM/AA\")","v":"du 00/01/00 au 00/01/00"}]
["Base",null,null,null,null,null,null,"Prévisionnel",300,"Réalisé",300,null,"          Fait le:\n\n          A: ",null,null,null,null,"Nom, signature, cachet"]
["DST réalisé en deux visites ou en binôme",null,null,null,null,null,null,"NON",{"$f":"IF(H11=\"OUI\",100,0)","v":0},"NON",{"$f":"IF(J11=\"OUI\",100,0)","v":0}]
["Profil \"expert\"",null,null,null,null,null,null,"NON",0,"NON",{"$f":"IF(J12=\"OUI\",100,0)","v":0}]
["Soutien renforcé (au-dela des 20% minimum)",null,null,null,null,null,null,"NON",{"$f":"IF(H13<>\"NON\",(MID(H13,3,2)*50),0)","v":0},"NON",{"$f":"IF(J13<>\"NON\",(MID(J13,3,2)*50),0)","v":0}]
["Forte articulation avec des dispositifs de type FSATME",null,null,null,null,null,null,"NON",{"$f":"IF(H14=\"OUI\",50,0)","v":0},"NON",{"$f":"IF(J14=\"OUI\",50,0)","v":0}]
["Suivi N+1",null,null,null,null,null,null,"NON",{"$f":"IF(H15=\"OUI\",50,0)","v":0},"NON",{"$f":"IF(J15=\"OUI\",50,0)","v":0},null,"Visa du.de la comptable public.que certifiant le paiement des dépenses d'exploitation figurant dans l'onglet \"Dépenses\" de l'année correspondante au vu des justificatifs produits (à l'exclusion des frais kilométriques non-attestables par le comptable public)"]
["Réalisation d'une médiation",null,null,null,null,null,null,"NON",{"$f":"IF(H16=\"OUI\",100,0)","v":0},"NON",{"$f":"IF(J16=\"OUI\",100,0)","v":0}]
["TOTAL",null,null,null,null,null,null,{"$f":"SUM(I10:I16)","v":300},null,{"$f":"SUM(K10:K16)","v":300}]
[null,null,null,null,null,null,null,null,null,null,null,null,"          Fait le:\n\n          A: ",null,null,null,null,"Nom, signature, cachet"]
["si la collectivité réalise une pré-visite à distance et une visite physique",null,null,null,null,null,null,null,{"$f":"IF(J11=\"NON\",J17+100,J17)","v":400}]
["si la collectivité n'a pu réaliser qu'une viiste à distance",null,null,null,null,null,null,null,{"$f":"IF(J11=\"NON\",J17,J17-100)","v":300}]
["Information relative à la pandémie Covid-19"]
[{"$f":" \"En \" & K3 & \" la collectivité a réalisé des visites à distance:\"","v":"En 2023 la collectivité a réalisé des visites à distance:"},null,null,null,null,null,null,null,null,"NON"]
[]
[{"$f":" \"Nombre de ménages accompagnés - valorisables\"","v":"Nombre de ménages accompagnés - valorisables"},null,null,null,null,null,null,null,null,null,null,null,"Conformément aux instructions précédemment transmises, la collectivité est tenue de transmettre au CLER, en même temps que la présente attestation dument complétée et signée, une copie des pièces justificatives (facture, convention, note de frais, etc.) de chaque dépense d'exploitation dont le montant dépasse:"]
[{"$f":" \"Nombre de ménages accompagnés - total\"","v":"Nombre de ménages accompagnés - total"}]
["dont ménages ayant reçu une pré-visite à distance et une visite physique",null,null,null,null,null,null,null,null,null,null,null,{"$f":"W3","v":0}]
["dont ménages ayant reçu uniquement une visite à distance"]
[{"$f":" \"Activités \" & 'Depenses 2023'!H3","v":"Activités 2023"},"Actions",null,"Frais directs","Moyens humains","Coûts connexes","Total","Assiette dépenses éligibles","Taux de co-financement CEE","Plafonds de co-financement CEE","Total de co-financement CEE",null,"Signature du.de la responsable dûment habilité.e (DGA, DGS, responsable RH) certifiant l'exactitude du temps déclaré sur le projet pour chacun des agents / pour l’ensemble des agents déclarés dans les dépenses de personnel"]
[null,"1. Animation territoriale",null,{"$f":"IF($K$6=\"OUI\",'Depenses 2023'!K7,0)","v":0},{"$f":"IF($K$6=\"OUI\",'Depenses 2023'!K13,0)","v":0},{"$f":"E29*0.25","v":0},{"$f":"D29+E29+F29","v":0},{"$f":"IF($K$5=\"OUI\",50000,25000)","v":25000},{"$f":"IF($K$3=2022,70%,0)+IF($K$3=2023,70%,0)+IF($K$3=2024,60%,0)+IF($K$3=2025,50%,0)","v":0.7},{"$f":"H29*I29","v":17500},{"$f":"IF(G29>H29,J29,G29*I29)","v":0}]
[null,"2. Diagnostics socio-techniques et soutien renforcé",null,{"$f":"'Depenses 2023'!K25","v":0},{"$f":"'Depenses 2023'!K36","v":0},{"$f":"E30*0.25","v":0},{"$f":"D30+E30+F30","v":0},{"$f":"G30","v":0},{"$f":"IF($K$3=2022,70%,0)+IF($K$3=2023,70%,0)+IF($K$3=2024,60%,0)+IF($K$3=2025,50%,0)","v":0.7},{"$f":"IF(J22=\"OUI\",(I19*H26+I20*H27+(H24-H26-H27)*J17),J17*H24)","v":0},{"$f":"IF(J30>(I30*G30),(I30*G30),J30)","v":0},null,"          Fait le:\n\n          A: ",null,null,null,null,"Nom, signature, cachet"]
[null,"3. Evaluation",null,{"$f":"'Depenses 2023'!K48","v":0},{"$f":"'Depenses 2023'!K54","v":0},{"$f":"E31*0.25","v":0},{"$f":"D31+E31+F31","v":0},20000,0.7,{"$f":"H31*I31","v":14000},{"$f":"IF((G31*I31)>J31,J31,G31*I31)","v":0}]
[null,"4.1 Formations",null,{"$f":"'Depenses 2023'!K61","v":0},{"$f":"'Depenses 2023'!K67","v":0},{"$f":"E32*0.25","v":0},{"$f":"D32+E32+F32","v":0},{"$f":"G32","v":0},0.75,"N/A",{"$f":"I32*G32","v":0}]
[null,"4.2 Accompagnement méthodologique",null,{"$f":"'Depenses 2023'!K73","v":0},"-","-",{"$f":"D33","v":0},3333.33,0.75,{"$f":"H33*I33","v":2499.9974999999999},{"$f":"IF((I33*G33)>J33,J33,G33*I33)","v":0}]
[]
[{"$f":" \"Total des dépenses engagées pour la période du \" & TEXT(C4,\"JJ/MM/AA\") & \" au \" & TEXT(C5,\"JJ/MM/AA\")","v":"Total des dépenses engagées pour la période du 00/01/00 au 00/01/00"},null,null,{"$f":"SUM(D29:D33)","v":0},{"$f":"SUM(E29:E32)","v":0},{"$f":"SUM(F29:F32)","v":0},{"$f":"SUM(G29:G33)","v":0}]
[]
[{"$f":" \"Total des co-financements apportés par les CEE du \" & TEXT(C4,\"JJ/MM/AA\") & \" au \" & TEXT(C5,\"JJ/MM/AA\")","v":"Total des co-financements apportés par les CEE du 00/01/00 au 00/01/00"},null,null,null,null,null,null,null,null,null,{"$f":"(IF(E6>H7,IF((SUM(K29:K33))>H7,H7,(SUM(K29:K33))),IF((SUM(K29:K33))>E6,E6,(SUM(K29:K33)))))","v":0}]

{"sheet":"Depenses 2024","index":5,"n_rows":80,"n_cols":11,"rows_kept":80,"cut":false,"hidden":false,"merged":[[76,0,76,9],[77,1,77,9],[78,0,78,9],[79,0,79,9],[71,10,75,10],[72,1,72,3],[73,1,73,3],[74,1,74,3],[75,1,75,3],[72,5,72,6],[73,5,73,6],[74,5,74,6],[75,5,75,6],[69,0,69,9],[70,1,70,3],[71,1,71,3],[64,3,64,5],[64,6,64,7],[65,3,65,5],[65,6,65,7],[70,5,70,6],[71,5,71,6],[65,10,68,10],[66,3,66,5],[66,6,66,7],[67,3,67,5],[67,6,67,7],[68,3,68,5],[59,10,63,10],[60,1,60,3],[61,1,61,3],[62,1,62,3],[63,1,63,3],[60,5,60,6],[61,5,61,6],[62,5,62,6],[63,5,63,6],[68,6,68,7],[56,0,56,9],[57,0,57,9],[58,1,58,3],[59,1,59,3],[51,3,51,5],[51,6,51,7],[52,3,52,5],[52,6,52,7],[58,5,58,6],[59,5,59,6],[52,10,55,10],[53,3,53,5],[53,6,53,7],[54,3,54,5],[54,6,54,7],[55,3,55,5],[46,10,50,10],[47,1,47,3],[48,1,48,3],[49,1,49,3],[50,1,50,3],[47,5,47,6],[48,5,48,6],[49,5,49,6],[50,5,50,6],[55,6,55,7],[44,0,44,9],[45,1,45,3],[46,1,46,3],[39,6,39,7],[40,3,40,5],[40,6,40,7],[41,3,41,5],[41,6,41,7],[42,3,42,5],[42,6,42,7],[45,5,45,6],[46,5,46,6],[33,3,33,5],[33,6,33,7],[34,3,34,5],[34,6,34,7],[29,1,29,3],[30,1,30,3],[31,1,31,3],[34,10,43,10],[35,3,35,5],[35,6,35,7],[36,3,36,5],[36,6,36,7],[37,3,37,5],[37,6,37,7],[38,3,38,5],[38,6,38,7],[39,3,39,5],[43,3,43,5],[43,6,43,7],[24,1,24,3],[24,10,32,10],[25,1,25,3],[26,1,26,3],[27,1,27,3],[28,1,28,3],[24,5,24,6],[25,5,25,6],[26,5,26,6],[27,5,27,6],[28,5,28,6],[29,5,29,6],[30,5,30,6],[31,5,31,6],[32,5,32,6],[32,1,32,3],[22,0,22,9],[23,1,23,3],[16,6,16,7],[17,3,17,5],[17,6,17,7],[18,3,18,5],[18,6,18,7],[19,3,19,5],[19,6,19,7],[23,5,23,6],[11,3,11,5],[11,6,11,7],[4,0,4,9],[5,1,5,3],[6,1,6,3],[12,3,12,5],[12,6,12,7],[12,10,21,10],[13,3,13,5],[13,6,13,7],[14,3,14,5],[14,6,14,7],[15,3,15,5],[15,6,15,7],[16,3,16,5],[20,3,20,5],[20,6,20,7],[21,3,21,5],[21,6,21,7],[6,10,10,10],[7,1,7,3],[8,1,8,3],[7,5,7,6],[8,5,8,6],[9,5,9,6],[10,5,10,6],[9,1,9,3],[10,1,10,3],[0,0,0,10],[1,0,1,10],[2,0,3,0],[2,1,3,5],[2,6,3,6],[2,7,3,7],[2,8,3,8],[5,5,5,6],[6,5,6,6]]}
[{"$f":" \"                                                                Recapitulatif des depenses \"  & B3 & \" - \" & H3","v":"                                                                Recapitulatif des depenses  - 2024"}]
["Merci de detailler l'ensemble des frais et du temps pour les actions d'animation, la realisation des diagnostics sociotechniques et soutiens renforces, l'evaluation ainsi que les formations et l'accompagnement methodologique."]
["Collectivite",null,null,null,null,null,"Annee",2024,"Periode","du (JJ/MM/AAAA):"]
[null,null,null,null,null,null,null,null,null,"au (JJ/MM/AAAA):"]
["1. Coordination du dispositif et animation territoriale",null,null,null,null,null,null,null,null,null,{"$f":"K7+K13","v":0}]
["Depenses d'exploitation (Frais directs)","detailler depense si besoin",null,null,"Date de pièce","N° et/ou type de pièce",null,"Date de règlement","Mode de règlement","Montant (€TTC)"]
[null,null,null,null,null,null,null,null,null,null,{"$f":"SUM(J7:J11)","v":0}]
[]
[]
[]
[]
["Depenses de personnel (Moyens humains)","detailler depense si besoin","Type de coût","Intitule de poste",null,null,"Prenom NOM",null,"Temps passe (jours)","Coût journalier (€)"]
[null,null,null,null,null,null,null,null,null,null,{"$f":"SUMPRODUCT(I13:I22,J13:J22)","v":0}]
[]
[]
[]
[]
[]
[]
[]
[]
[]
["2. Diagnostics socio-techniques et soutien renforce",null,null,null,null,null,null,null,null,null,{"$f":"K25+K35","v":0}]
["Depenses d'exploitation (Frais directs)","detailler depense si besoin (notamment indemnite/km et nombre de km pour les deplacements)",null,null,"Date de pièce","N° et/ou type de pièce",null,"Date de règlement","Mode de règlement","Montant (€TTC)"]
[null,null,null,null,null,null,null,null,null,null,{"$f":"SUM(J25:J33)","v":0}]
[]
[]
[]
[]
[]
[]
[]
[]
["Depenses de personnel (Moyens humains)","detailler depense si besoin","Type de coût","Intitule de poste",null,null,"Prenom NOM",null,"Temps passe (jours)","Coût journalier (€)"]
[null,null,null,null,null,null,null,null,null,null,{"$f":"SUMPRODUCT(I35:I44,J35:J44)","v":0}]
[]
[]
[]
[]
[]
[]
[]
[]
[]
["3. Evaluation",null,null,null,null,null,null,null,null,null,{"$f":"K47+K53","v":0}]
["Depenses d'exploitation (Frais directs)","detailler depense si besoin",null,null,"Date de pièce","N° et/ou type de pièce",null,"Date de règlement","Mode de règlement","Montant (€TTC)"]
[null,null,null,null,null,null,null,null,null,null,{"$f":"SUM(J47:J51)","v":0}]
[]
[]
[]
[]
["Depenses de personnel (Moyens humains)","detailler depense si besoin","Type de coût","Intitule de poste",null,null,"Prenom NOM",null,"Temps passe (jours)","Coût journalier (€)"]
[null,null,null,null,null,null,null,null,null,null,{"$f":"SUMPRODUCT(I53:I56,J53:J56)","v":0}]
[]
[]
[]
["4. Formations et accompagnement methodologique",null,null,null,null,null,null,null,null,null,{"$f":"K58+K70","v":0}]
["4.1 Formations",null,null,null,null,null,null,null,null,null,{"$f":"K60+K66","v":0}]
["Depenses d'exploitation (Frais directs)","detailler depense si besoin",null,null,"Date de pièce","N° et/ou type de pièce",null,"Date de règlement","Mode de règlement","Montant (€TTC)"]
[null,null,null,null,null,null,null,null,null,null,{"$f":"SUM(J60:J64)","v":0}]
[]
[]
[]
[]
["Depenses de personnel (Moyens humains)","detailler depense si besoin","Type de coût","Intitule de poste",null,null,"Prenom NOM",null,"Temps passe (jours)","Coût journalier (€)"]
[null,null,null,null,null,null,null,null,null,null,{"$f":"SUMPRODUCT(I66:I69,J66:J69)","v":0}]
[]
[]
[]
["4.2 Accompagnement methodologique",null,null,null,null,null,null,null,null,null,{"$f":"K72","v":0}]
["Depenses d'exploitation (Frais directs)","detailler depense si besoin",null,null,"Date de pièce","N° et/ou type de pièce",null,"Date de règlement","Mode de règlement","Montant (€TTC)"]
[null,null,null,null,null,null,null,null,null,null,{"$f":"SUM(J72:J76)","v":0}]
[]
[]
[]
[]
["Total des depenses de personnel (TTC)",null,null,null,null,null,null,null,null,null,{"$f":"K13+K35+K53+K66","v":0}]
["Coûts connexes",0.25,null,null,null,null,null,null,null,null,{"$f":"B78*(K77)","v":0}]
["Total des depenses realisees par la collectivite (TTC)",null,null,null,null,null,null,null,null,null,{"$f":"K5+K23+K45+K57","v":0}]
["Total des depenses eligibles à un co-financement par le programme Slime (TTC)",null,null,null,null,null,null,null,null,null,{"$f":"K5+K23+K45+K57+K78","v":0}]

{"sheet":"Attestation 2024","index":6,"n_rows":37,"n_cols":23,"rows_kept":37,"cut":false,"hidden":false,"merged":[[34,0,34,2],[34,7,34,10],[36,0,36,2],[36,3,36,9],[29,17,29,20],[23,0,23,6],[23,7,23,10],[26,0,26,6],[26,7,26,10],[27,0,32,0],[27,1,27,2],[28,1,28,2],[29,1,29,2],[30,1,30,2],[31,1,31,2],[32,1,32,2],[24,0,24,6],[24,7,24,10],[25,0,25,6],[25,7,25,10],[16,7,17,8],[16,9,17,10],[17,12,22,16],[18,0,18,7],[18,8,18,10],[19,0,19,7],[19,8,19,10],[20,0,20,10],[21,0,22,8],[21,9,22,10],[15,0,15,6],[7,0,7,6],[7,7,7,10],[8,0,8,10],[8,12,8,20],[9,0,9,6],[9,12,12,16],[10,0,10,6],[11,0,11,6],[12,0,12,6],[9,17,9,20],[10,17,12,20],[13,0,13,6],[14,0,14,6],[14,12,16,20],[16,0,17,6],[0,0,0,20],[1,0,1,10],[2,0,2,1],[2,2,2,6],[2,7,3,9],[2,10,3,10],[3,0,4,0],[3,2,3,6],[4,2,4,6],[4,7,4,9],[4,12,7,20],[5,2,5,3],[5,4,5,6],[5,7,5,9],[6,0,6,6],[6,7,6,10],[3,12,3,20],[1,15,1,20],[1,12,1,14],[18,17,22,20],[30,17,36,20],[23,12,24,20],[27,12,28,20],[29,12,36,16],[25,12,25,20],[17,17,17,20]]}
[{"$f":" \"                                                               Attestation \"  & 'Depenses 2024'!D3 & \" \" & 'Depenses 2024'!H3","v":"                                                               Attestation  2024"}]
["Informations générales",null,null,null,null,null,null,null,null,null,null,null,"IBAN"]
["Nom de la collectivité ",null,{"$f":"'Depenses 2024'!B3","v":0},null,null,null,null,"Année ",null,null,{"$f":"'Depenses 2024'!H3","v":2024},null,null,null,null,null,null,null,null,null,null,null,0]
["Période","du :",{"$f":"'Depenses 2024'!K3","v":"00:00:00"},null,null,null,null,null,null,null,null,null,"Attestation du.de la responsable dûment habilité.e pour engager légalement la structure"]
[null,"au :",{"$f":"'Depenses 2024'!K4","v":"00:00:00"},null,null,null,null,"1ère année Slime",null,null,"NON",null,"Je, soussigné.e [élu.e en charge du dispositif], déclare que la totalité des actions et les dépenses reportées dans la synthèse ci-contre et détaillées dans l'onglet \"Dépenses\" ont été réalisées par [Nom de la structure] dans le cadre du programme Slime+ sur la période "]
["Type de territoire","Conseil départemental","Plafond maximum de co-financement CEE",null,{"$f":"IF($B$6=\"Conseil Régional\",1900000,0)+IF($B$6=\"Conseil départemental\",800000,0)+IF($B$6=\"Métropole\",800000,0)+IF($B$6=\"Autre type\",400000,0)","v":800000},null,null,"Dispositif pluriannuel",null,null,"OUI"]
[{"$f":" \"Montant de co-financement maximal CEE \" & 'Depenses 2024'!H3","v":"Montant de co-financement maximal CEE 2024"}]
[{"$f":" \"Montant de l'avance \" & 'Depenses 2024'!H3","v":"Montant de l'avance 2024"}]
[{"$f":" \"Forfait \" & K3","v":"Forfait 2024"},null,null,null,null,null,null,null,null,null,null,null,{"$f":" \"du \" & TEXT(C4,\"JJ/MM/AA\") & \" au \" & TEXT(C5,\"JJ/MM/AA\")","v":"du 00/01/00 au 00/01/00"}]
["Base",null,null,null,null,null,null,"Prévisionnel",300,"Réalisé",300,null,"          Fait le:\n\n          A: ",null,null,null,null,"Nom, signature, cachet"]
["DST réalisé en deux visites ou en binôme",null,null,null,null,null,null,"NON",{"$f":"IF(H11=\"OUI\",100,0)","v":0},"NON",{"$f":"IF(J11=\"OUI\",100,0)","v":0}]
["Profil \"expert\"",null,null,null,null,null,null,"NON",0,"NON",{"$f":"IF(J12=\"OUI\",100,0)","v":0}]
["Soutien renforcé (au-dela des 20% minimum)",null,null,null,null,null,null,"NON",{"$f":"IF(H13<>\"NON\",(MID(H13,3,2)*50),0)","v":0},"NON",{"$f":"IF(J13<>\"NON\",(MID(J13,3,2)*50),0)","v":0}]
["Forte articulation avec des dispositifs de type FSATME",null,null,null,null,null,null,"NON",{"$f":"IF(H14=\"OUI\",50,0)","v":0},"NON",{"$f":"IF(J14=\"OUI\",50,0)","v":0}]
["Suivi N+1",null,null,null,null,null,null,"NON",{"$f":"IF(H15=\"OUI\",50,0)","v":0},"NON",{"$f":"IF(J15=\"OUI\",50,0)","v":0},null,"Visa du.de la comptable public.que certifiant le paiement des dépenses d'exploitation figurant dans l'onglet \"Dépenses\" de l'année correspondante au vu des justificatifs produits (à l'exclusion des frais kilométriques non-attestables par le comptable public)"]
["Réalisation d'une médiation",null,null,null,null,null,null,"NON",{"$f":"IF(H16=\"OUI\",100,0)","v":0},"NON",{"$f":"IF(J16=\"OUI\",100,0)","v":0}]
["TOTAL",null,null,null,null,null,null,{"$f":"SUM(I10:I16)","v":300},null,{"$f":"SUM(K10:K16)","v":300}]
[null,null,null,null,null,null,null,null,null,null,null,null,"          Fait le:\n\n          A: ",null,null,null,null,"Nom, signature, cachet"]
["si la collectivité réalise une pré-visite à distance et une visite physique",null,null,null,null,null,null,null,{"$f":"IF(J11=\"NON\",J17+100,J17)","v":400}]
["si la collectivité n'a pu réaliser qu'une viiste à distance",null,null,null,null,null,null,null,{"$f":"IF(J11=\"NON\",J17,J17-100)","v":300}]
["Information relative à la pandémie Covid-19"]
[{"$f":" \"En \" & K3 & \" la collectivité a réalisé des visites à distance:\"","v":"En 2024 la collectivité a réalisé des visites à distance:"},null,null,null,null,null,null,null,null,"NON"]
[]
[{"$f":" \"Nombre de ménages accompagnés - valorisables\"","v":"Nombre de ménages accompagnés - valorisables"},null,null,null,null,null,null,null,null,null,null,null,"Conformément aux instructions précédemment transmises, la collectivité est tenue de transmettre au CLER, en même temps que la présente attestation dument complétée et signée, une copie des pièces justificatives (facture, convention, note de frais, etc.) de chaque dépense d'exploitation dont le montant dépasse:"]
[{"$f":" \"Nombre de ménages accompagnés - total\"","v":"Nombre de ménages accompagnés - total"}]
["dont ménages ayant reçu une pré-visite à distance et une visite physique",null,null,null,null,null,null,null,null,null,null,null,{"$f":"W3","v":0}]
["dont ménages ayant reçu uniquement une visite à distance"]
[{"$f":" \"Activités \" & 'Depenses 2024'!H3","v":"Activités 2024"},"Actions",null,"Frais directs","Moyens humains","Coûts connexes","Total","Assiette dépenses éligibles","Taux de co-financement CEE","Plafonds de co-financement CEE","Total de co-financement CEE",null,"Signature du.de la responsable dûment habilité.e (DGA, DGS, responsable RH) certifiant l'exactitude du temps déclaré sur le projet pour chacun des agents / pour l’ensemble des agents déclarés dans les dépenses de personnel"]
[null,"1. Animation territoriale",null,{"$f":"IF($K$6=\"OUI\",'Depenses 2024'!K7,0)","v":0},{"$f":"IF($K$6=\"OUI\",'Depenses 2024'!K13,0)","v":0},{"$f":"E29*0.25","v":0},{"$f":"D29+E29+F29","v":0},{"$f":"IF($K$5=\"OUI\",50000,25000)","v":25000},{"$f":"IF($K$3=2022,70%,0)+IF($K$3=2023,70%,0)+IF($K$3=2024,60%,0)+IF($K$3=2025,50%,0)","v":0.6},{"$f":"H29*I29","v":15000},{"$f":"IF(G29>H29,J29,G29*I29)","v":0}]
[null,"2. Diagnostics socio-techniques et soutien renforcé",null,{"$f":"'Depenses 2024'!K25","v":0},{"$f":"'Depenses 2024'!K35","v":0},{"$f":"E30*0.25","v":0},{"$f":"D30+E30+F30","v":0},{"$f":"G30","v":0},{"$f":"IF($K$3=2022,70%,0)+IF($K$3=2023,70%,0)+IF($K$3=2024,60%,0)+IF($K$3=2025,50%,0)","v":0.6},{"$f":"IF(J22=\"OUI\",(I19*H26+I20*H27+(H24-H26-H27)*J17),J17*H24)","v":0},{"$f":"IF(J30>(I30*G30),(I30*G30),J30)","v":0},null,"          Fait le:\n\n          A: ",null,null,null,null,"Nom, signature, cachet"]
[null,"3. Evaluation",null,{"$f":"'Depenses 2024'!K47","v":0},{"$f":"'Depenses 2024'!K53","v":0},{"$f":"E31*0.25","v":0},{"$f":"D31+E31+F31","v":0},20000,0.6,{"$f":"H31*I31","v":12000},{"$f":"IF((G31*I31)>J31,J31,G31*I31)","v":0}]
[null,"4.1 Formations",null,{"$f":"'Depenses 2024'!K60","v":0},{"$f":"'Depenses 2024'!K66","v":0},{"$f":"E32*0.25","v":0},{"$f":"D32+E32+F32","v":0},{"$f":"G32","v":0},0.75,"N/A",{"$f":"I32*G32","v":0}]
[null,"4.2 Accompagnement méthodologique",null,{"$f":"'Depenses 2024'!K72","v":0},"-","-",{"$f":"D33","v":0},3333.33,0.75,{"$f":"H33*I33","v":2499.9974999999999},{"$f":"IF((I33*G33)>J33,J33,G33*I33)","v":0}]
[]
[{"$f":" \"Total des dépenses engagées pour la période du \" & TEXT(C4,\"JJ/MM/AA\") & \" au \" & TEXT(C5,\"JJ/MM/AA\")","v":"Total des dépenses engagées pour la période du 00/01/00 au 00/01/00"},null,null,{"$f":"SUM(D29:D33)","v":0},{"$f":"SUM(E29:E32)","v":0},{"$f":"SUM(F29:F32)","v":0},{"$f":"SUM(G29:G33)","v":0}]
[]
[{"$f":" \"Total des co-financements apportés par les CEE du \" & TEXT(C4,\"JJ/MM/AA\") & \" au \" & TEXT(C5,\"JJ/MM/AA\")","v":"Total des co-financements apportés par les CEE du 00/01/00 au 00/01/00"},null,null,null,null,null,null,null,null,null,{"$f":"(IF(E6>H7,IF((SUM(K29:K33))>H7,H7,(SUM(K29:K33))),IF((SUM(K29:K33))>E6,E6,(SUM(K29:K33)))))","v":0}]

{"sheet":"Depenses 2025","index":7,"n_rows":80,"n_cols":11,"rows_kept":80,"cut":false,"hidden":false,"merged":[[76,0,76,9],[77,1,77,9],[78,0,78,9],[79,0,79,9],[71,10,75,10],[72,1,72,3],[73,1,73,3],[74,1,74,3],[75,1,75,3],[72,5,72,6],[73,5,73,6],[74,5,74,6],[75,5,75,6],[69,0,69,9],[70,1,70,3],[71,1,71,3],[64,3,64,5],[64,6,64,7],[65,3,65,5],[65,6,65,7],[70,5,70,6],[71,5,71,6],[65,10,68,10],[66,3,66,5],[66,6,66,7],[67,3,67,5],[67,6,67,7],[68,3,68,5],[59,10,63,10],[60,1,60,3],[61,1,61,3],[62,1,62,3],[63,1,63,3],[60,5,60,6],[61,5,61,6],[62,5,62,6],[63,5,63,6],[68,6,68,7],[56,0,56,9],[57,0,57,9],[58,1,58,3],[59,1,59,3],[51,3,51,5],[51,6,51,7],[52,3,52,5],[52,6,52,7],[58,5,58,6],[59,5,59,6],[52,10,55,10],[53,3,53,5],[53,6,53,7],[54,3,54,5],[54,6,54,7],[55,3,55,5],[46,10,50,10],[47,1,47,3],[48,1,48,3],[49,1,49,3],[50,1,50,3],[47,5,47,6],[48,5,48,6],[49,5,49,6],[50,5,50,6],[55,6,55,7],[44,0,44,9],[45,1,45,3],[46,1,46,3],[39,6,39,7],[40,3,40,5],[40,6,40,7],[41,3,41,5],[41,6,41,7],[42,3,42,5],[42,6,42,7],[45,5,45,6],[46,5,46,6],[33,3,33,5],[33,6,33,7],[34,3,34,5],[34,6,34,7],[29,1,29,3],[30,1,30,3],[31,1,31,3],[34,10,43,10],[35,3,35,5],[35,6,35,7],[36,3,36,5],[36,6,36,7],[37,3,37,5],[37,6,37,7],[38,3,38,5],[38,6,38,7],[39,3,39,5],[43,3,43,5],[43,6,43,7],[24,1,24,3],[24,10,32,10],[25,1,25,3],[26,1,26,3],[27,1,27,3],[28,1,28,3],[24,5,24,6],[25,5,25,6],[26,5,26,6],[27,5,27,6],[28,5,28,6],[29,5,29,6],[30,5,30,6],[31,5,31,6],[32,5,32,6],[32,1,32,3],[22,0,22,9],[23,1,23,3],[16,6,16,7],[17,3,17,5],[17,6,17,7],[18,3,18,5],[18,6,18,7],[19,3,19,5],[19,6,19,7],[23,5,23,6],[11,3,11,5],[11,6,11,7],[4,0,4,9],[5,1,5,3],[6,1,6,3],[12,3,12,5],[12,6,12,7],[12,10,21,10],[13,3,13,5],[13,6,13,7],[14,3,14,5],[14,6,14,7],[15,3,15,5],[15,6,15,7],[16,3,16,5],[20,3,20,5],[20,6,20,7],[21,3,21,5],[21,6,21,7],[6,10,10,10],[7,1,7,3],[8,1,8,3],[7,5,7,6],[8,5,8,6],[9,5,9,6],[10,5,10,6],[9,1,9,3],[10,1,10,3],[0,0,0,10],[1,0,1,10],[2,0,3,0],[2,1,3,5],[2,6,3,6],[2,7,3,7],[2,8,3,8],[5,5,5,6],[6,5,6,6]]}
[{"$f":" \"                                                                Recapitulatif des depenses \"  & B3 & \" - \" & H3","v":"                                                                Recapitulatif des depenses  - 2025"}]
["Merci de detailler l'ensemble des frais et du temps pour les actions d'animation, la realisation des diagnostics sociotechniques et soutiens renforces, l'evaluation ainsi que les formations et l'accompagnement methodologique."]
["Collectivite",null,null,null,null,null,"Annee",2025,"Periode","du (JJ/MM/AAAA):"]
[null,null,null,null,null,null,null,null,null,"au (JJ/MM/AAAA):"]
["1. Coordination du dispositif et animation territoriale",null,null,null,null,null,null,null,null,null,{"$f":"K7+K13","v":0}]
["Depenses d'exploitation (Frais directs)","detailler depense si besoin",null,null,"Date de pièce","N° et/ou type de pièce",null,"Date de règlement","Mode de règlement","Montant (€TTC)"]
[null,null,null,null,null,null,null,null,null,null,{"$f":"SUM(J7:J11)","v":0}]
[]
[]
[]
[]
["Depenses de personnel (Moyens humains)","detailler depense si besoin","Type de coût","Intitule de poste",null,null,"Prenom NOM",null,"Temps passe (jours)","Coût journalier (€)"]
[null,null,null,null,null,null,null,null,null,null,{"$f":"SUMPRODUCT(I13:I22,J13:J22)","v":0}]
[]
[]
[]
[]
[]
[]
[]
[]
[]
["2. Diagnostics socio-techniques et soutien renforce",null,null,null,null,null,null,null,null,null,{"$f":"K25+K35","v":0}]
["Depenses d'exploitation (Frais directs)","detailler depense si besoin (notamment indemnite/km et nombre de km pour les deplacements)",null,null,"Date de pièce","N° et/ou type de pièce",null,"Date de règlement","Mode de règlement","Montant (€TTC)"]
[null,null,null,null,null,null,null,null,null,null,{"$f":"SUM(J25:J33)","v":0}]
[]
[]
[]
[]
[]
[]
[]
[]
["Depenses de personnel (Moyens humains)","detailler depense si besoin","Type de coût","Intitule de poste",null,null,"Prenom NOM",null,"Temps passe (jours)","Coût journalier (€)"]
[null,null,null,null,null,null,null,null,null,null,{"$f":"SUMPRODUCT(I35:I44,J35:J44)","v":0}]
[]
[]
[]
[]
[]
[]
[]
[]
[]
["3. Evaluation",null,null,null,null,null,null,null,null,null,{"$f":"K47+K53","v":0}]
["Depenses d'exploitation (Frais directs)","detailler depense si besoin",null,null,"Date de pièce","N° et/ou type de pièce",null,"Date de règlement","Mode de règlement","Montant (€TTC)"]
[null,null,null,null,null,null,null,null,null,null,{"$f":"SUM(J47:J51)","v":0}]
[]
[]
[]
[]
["Depenses de personnel (Moyens humains)","detailler depense si besoin","Type de coût","Intitule de poste",null,null,"Prenom NOM",null,"Temps passe (jours)","Coût journalier (€)"]
[null,null,null,null,null,null,null,null,null,null,{"$f":"SUMPRODUCT(I53:I56,J53:J56)","v":0}]
[]
[]
[]
["4. Formations et accompagnement methodologique",null,null,null,null,null,null,null,null,null,{"$f":"K58+K70","v":0}]
["4.1 Formations",null,null,null,null,null,null,null,null,null,{"$f":"K60+K66","v":0}]
["Depenses d'exploitation (Frais directs)","detailler depense si besoin",null,null,"Date de pièce","N° et/ou type de pièce",null,"Date de règlement","Mode de règlement","Montant (€TTC)"]
[null,null,null,null,null,null,null,null,null,null,{"$f":"SUM(J60:J64)","v":0}]
[]
[]
[]
[]
["Depenses de personnel (Moyens humains)","detailler depense si besoin","Type de coût","Intitule de poste",null,null,"Prenom NOM",null,"Temps passe (jours)","Coût journalier (€)"]
[null,null,null,null,null,null,null,null,null,null,{"$f":"SUMPRODUCT(I66:I69,J66:J69)","v":0}]
[]
[]
[]
["4.2 Accompagnement methodologique",null,null,null,null,null,null,null,null,null,{"$f":"K72","v":0}]
["Depenses d'exploitation (Frais directs)","detailler depense si besoin",null,null,"Date de pièce","N° et/ou type de pièce",null,"Date de règlement","Mode de règlement","Montant (€TTC)"]
[null,null,null,null,null,null,null,null,null,null,{"$f":"SUM(J72:J76)","v":0}]
[]
[]
[]
[]
["Total des depenses de personnel (TTC)",null,null,null,null,null,null,null,null,null,{"$f":"K13+K35+K53+K66","v":0}]
["Coûts connexes",0.25,null,null,null,null,null,null,null,null,{"$f":"B78*(K77)","v":0}]
["Total des depenses realisees par la collectivite (TTC)",null,null,null,null,null,null,null,null,null,{"$f":"K5+K23+K45+K57","v":0}]
["Total des depenses eligibles à un co-financement par le programme Slime (TTC)",null,null,null,null,null,null,null,null,null,{"$f":"K5+K23+K45+K57+K78","v":0}]

{"sheet":"Attestation 2025","index":8,"n_rows":37,"n_cols":23,"rows_kept":37,"cut":false,"hidden":false,"merged":[[34,0,34,2],[34,7,34,10],[36,0,36,2],[36,3,36,9],[29,17,29,20],[23,0,23,6],[23,7,23,10],[26,0,26,6],[26,7,26,10],[27,0,32,0],[27,1,27,2],[28,1,28,2],[29,1,29,2],[30,1,30,2],[31,1,31,2],[32,1,32,2],[24,0,24,6],[24,7,24,10],[25,0,25,6],[25,7,25,10],[16,7,17,8],[16,9,17,10],[17,12,22,16],[18,0,18,7],[18,8,18,10],[19,0,19,7],[19,8,19,10],[20,0,20,10],[21,0,22,8],[21,9,22,10],[15,0,15,6],[7,0,7,6],[7,7,7,10],[8,0,8,10],[8,12,8,20],[9,0,9,6],[9,12,12,16],[10,0,10,6],[11,0,11,6],[12,0,12,6],[9,17,9,20],[10,17,12,20],[13,0,13,6],[14,0,14,6],[14,12,16,20],[16,0,17,6],[0,0,0,20],[1,0,1,10],[2,0,2,1],[2,2,2,6],[2,7,3,9],[2,10,3,10],[3,0,4,0],[3,2,3,6],[4,2,4,6],[4,7,4,9],[4,12,7,20],[5,2,5,3],[5,4,5,6],[5,7,5,9],[6,0,6,6],[6,7,6,10],[3,12,3,20],[1,12,1,14],[1,15,1,20],[18,17,22,20],[30,17,36,20],[23,12,24,20],[27,12,28,20],[29,12,36,16],[25,12,25,20],[17,17,17,20]]}
[{"$f":" \"                                                               Attestation \"  & 'Depenses 2025'!D3 & \" \" & 'Depenses 2025'!H3","v":"                                                               Attestation  2025"}]
["Informations générales",null,null,null,null,null,null,null,null,null,null,null,"IBAN"]
["Nom de la collectivité ",null,{"$f":"'Depenses 2025'!B3","v":0},null,null,null,null,"Année ",null,null,{"$f":"'Depenses 2025'!H3","v":2025},null,null,null,null,null,null,null,null,null,null,null,0]
["Période","du :",{"$f":"'Depenses 2025'!K3","v":"00:00:00"},null,null,null,null,null,null,null,null,null,"Attestation du.de la responsable dûment habilité.e pour engager légalement la structure"]
[null,"au :",{"$f":"'Depenses 2025'!K4","v":"00:00:00"},null,null,null,null,"1ère année Slime",null,null,"NON",null,"Je, soussigné.e [élu.e en charge du dispositif], déclare que la totalité des actions et les dépenses reportées dans la synthèse ci-contre et détaillées dans l'onglet \"Dépenses\" ont été réalisées par [Nom de la structure] dans le cadre du programme Slime+ sur la période "]
["Type de territoire","Conseil départemental","Plafond maximum de co-financement CEE",null,{"$f":"IF($B$6=\"Conseil Régional\",1900000,0)+IF($B$6=\"Conseil départemental\",800000,0)+IF($B$6=\"Métropole\",800000,0)+IF($B$6=\"Autre type\",400000,0)","v":800000},null,null,"Dispositif pluriannuel",null,null,"OUI"]
[{"$f":" \"Montant de co-financement maximal CEE \" & 'Depenses 2025'!H3","v":"Montant de co-financement maximal CEE 2025"}]
[{"$f":" \"Montant de l'avance \" & 'Depenses 2025'!H3","v":"Montant de l'avance 2025"}]
[{"$f":" \"Forfait \" & K3","v":"Forfait 2025"},null,null,null,null,null,null,null,null,null,null,null,{"$f":" \"du \" & TEXT(C4,\"JJ/MM/AA\") & \" au \" & TEXT(C5,\"JJ/MM/AA\")","v":"du 00/01/00 au 00/01/00"}]
["Base",null,null,null,null,null,null,"Prévisionnel",300,"Réalisé",300,null,"          Fait le:\n\n          A: ",null,null,null,null,"Nom, signature, cachet"]
["DST réalisé en deux visites ou en binôme",null,null,null,null,null,null,"NON",{"$f":"IF(H11=\"OUI\",100,0)","v":0},"NON",{"$f":"IF(J11=\"OUI\",100,0)","v":0}]
["Profil \"expert\"",null,null,null,null,null,null,"NON",0,"NON",{"$f":"IF(J12=\"OUI\",100,0)","v":0}]
["Soutien renforcé (au-dela des 20% minimum)",null,null,null,null,null,null,"NON",{"$f":"IF(H13<>\"NON\",(MID(H13,3,2)*50),0)","v":0},"NON",{"$f":"IF(J13<>\"NON\",(MID(J13,3,2)*50),0)","v":0}]
["Forte articulation avec des dispositifs de type FSATME",null,null,null,null,null,null,"NON",{"$f":"IF(H14=\"OUI\",50,0)","v":0},"NON",{"$f":"IF(J14=\"OUI\",50,0)","v":0}]
["Suivi N+1",null,null,null,null,null,null,"NON",{"$f":"IF(H15=\"OUI\",50,0)","v":0},"NON",{"$f":"IF(J15=\"OUI\",50,0)","v":0},null,"Visa du.de la comptable public.que certifiant le paiement des dépenses d'exploitation figurant dans l'onglet \"Dépenses\" de l'année correspondante au vu des justificatifs produits (à l'exclusion des frais kilométriques non-attestables par le comptable public)"]
["Réalisation d'une médiation",null,null,null,null,null,null,"NON",{"$f":"IF(H16=\"OUI\",100,0)","v":0},"NON",{"$f":"IF(J16=\"OUI\",100,0)","v":0}]
["TOTAL",null,null,null,null,null,null,{"$f":"SUM(I10:I16)","v":300},null,{"$f":"SUM(K10:K16)","v":300}]
[null,null,null,null,null,null,null,null,null,null,null,null,"          Fait le:\n\n          A: ",null,null,null,null,"Nom, signature, cachet"]
["si la collectivité réalise une pré-visite à distance et une visite physique",null,null,null,null,null,null,null,{"$f":"IF(J11=\"NON\",J17+100,J17)","v":400}]
["si la collectivité n'a pu réaliser qu'une viiste à distance",null,null,null,null,null,null,null,{"$f":"IF(J11=\"NON\",J17,J17-100)","v":300}]
["Information relative à la pandémie Covid-19"]
[{"$f":" \"En \" & K3 & \" la collectivité a réalisé des visites à distance:\"","v":"En 2025 la collectivité a réalisé des visites à distance:"},null,null,null,null,null,null,null,null,"NON"]
[]
[{"$f":" \"Nombre de ménages accompagnés - valorisables\"","v":"Nombre de ménages accompagnés - valorisables"},null,null,null,null,null,null,null,null,null,null,null,"Conformément aux instructions précédemment transmises, la collectivité est tenue de transmettre au CLER, en même temps que la présente attestation dument complétée et signée, une copie des pièces justificatives (facture, convention, note de frais, etc.) de chaque dépense d'exploitation dont le montant dépasse:"]
[{"$f":" \"Nombre de ménages accompagnés - total\"","v":"Nombre de ménages accompagnés - total"}]
["dont ménages ayant reçu une pré-visite à distance et une visite physique",null,null,null,null,null,null,null,null,null,null,null,{"$f":"W3","v":0}]
["dont ménages ayant reçu uniquement une visite à distance"]
[{"$f":" \"Activités \" & 'Depenses 2025'!H3","v":"Activités 2025"},"Actions",null,"Frais directs","Moyens humains","Coûts connexes","Total","Assiette dépenses éligibles","Taux de co-financement CEE","Plafonds de co-financement CEE","Total de co-financement CEE",null,"Signature du.de la responsable dûment habilité.e (DGA, DGS, responsable RH) certifiant l'exactitude du temps déclaré sur le projet pour chacun des agents / pour l’ensemble des agents déclarés dans les dépenses de personnel"]
[null,"1. Animation territoriale",null,{"$f":"IF($K$6=\"OUI\",'Depenses 2025'!K7,0)","v":0},{"$f":"IF($K$6=\"OUI\",'Depenses 2025'!K13,0)","v":0},{"$f":"E29*0.25","v":0},{"$f":"D29+E29+F29","v":0},{"$f":"IF($K$5=\"OUI\",50000,25000)","v":25000},{"$f":"IF($K$3=2022,70%,0)+IF($K$3=2023,70%,0)+IF($K$3=2024,60%,0)+IF($K$3=2025,60%,0)","v":0.6},{"$f":"H29*I29","v":15000},{"$f":"IF(G29>H29,J29,G29*I29)","v":0}]
[null,"2. Diagnostics socio-techniques et soutien renforcé",null,{"$f":"'Depenses 2025'!K25","v":0},{"$f":"'Depenses 2025'!K35","v":0},{"$f":"E30*0.25","v":0},{"$f":"D30+E30+F30","v":0},{"$f":"G30","v":0},{"$f":"IF($K$3=2022,70%,0)+IF($K$3=2023,70%,0)+IF($K$3=2024,60%,0)+IF($K$3=2025,60%,0)","v":0.6},{"$f":"IF(J22=\"OUI\",(I19*H26+I20*H27+(H24-H26-H27)*J17),J17*H24)","v":0},{"$f":"IF(J30>(I30*G30),(I30*G30),J30)","v":0},null,"          Fait le:\n\n          A: ",null,null,null,null,"Nom, signature, cachet"]
[null,"3. Evaluation",null,{"$f":"'Depenses 2025'!K47","v":0},{"$f":"'Depenses 2025'!K53","v":0},{"$f":"E31*0.25","v":0},{"$f":"D31+E31+F31","v":0},20000,{"$f":"IF($K$3=2022,70%,0)+IF($K$3=2023,70%,0)+IF($K$3=2024,60%,0)+IF($K$3=2025,60%,0)","v":0.6},{"$f":"H31*I31","v":12000},{"$f":"IF((G31*I31)>J31,J31,G31*I31)","v":0}]
[null,"4.1 Formations",null,{"$f":"'Depenses 2025'!K60","v":0},{"$f":"'Depenses 2025'!K66","v":0},{"$f":"E32*0.25","v":0},{"$f":"D32+E32+F32","v":0},{"$f":"G32","v":0},0.75,"N/A",{"$f":"I32*G32","v":0}]
[null,"4.2 Accompagnement méthodologique",null,{"$f":"'Depenses 2025'!K72","v":0},"-","-",{"$f":"D33","v":0},3333.33,0.75,{"$f":"H33*I33","v":2499.9974999999999},{"$f":"IF((I33*G33)>J33,J33,G33*I33)","v":0}]
[]
[{"$f":" \"Total des dépenses engagées pour la période du \" & TEXT(C4,\"JJ/MM/AA\") & \" au \" & TEXT(C5,\"JJ/MM/AA\")","v":"Total des dépenses engagées pour la période du 00/01/00 au 00/01/00"},null,null,{"$f":"SUM(D29:D33)","v":0},{"$f":"SUM(E29:E32)","v":0},{"$f":"SUM(F29:F32)","v":0},{"$f":"SUM(G29:G33)","v":0}]
[]
[{"$f":" \"Total des co-financements apportés par les CEE du \" & TEXT(C4,\"JJ/MM/AA\") & \" au \" & TEXT(C5,\"JJ/MM/AA\")","v":"Total des co-financements apportés par les CEE du 00/01/00 au 00/01/00"},null,null,null,null,null,null,null,null,null,{"$f":"(IF(E6>H7,IF((SUM(K29:K33))>H7,H7,(SUM(K29:K33))),IF((SUM(K29:K33))>E6,E6,(SUM(K29:K33)))))","v":0}]

{"sheet":"Synthèse","index":9,"n_rows":35,"n_cols":10,"rows_kept":35,"cut":false,"hidden":false,"merged":[[1,1,3,5],[0,0,0,9],[26,1,29,2],[31,1,34,2],[25,0,25,9],[30,0,30,9],[21,1,24,2],[20,0,20,9],[11,1,14,2],[16,1,19,2],[15,0,15,9],[1,0,3,0],[10,1,10,2]]}
[{"$f":" \"                                                                Synthèse \" & B2","v":"                                                                Synthèse 0"}]
["Collectivité",{"$f":"'Depenses 2022'!D3","v":0}]
[]
[]
[null,2022,2023,2024,2025,"Total"]
["Forfait",{"$f":"'Attestation 2022'!$J$17","v":300},{"$f":"'Attestation 2023'!$J$17","v":300},{"$f":"'Attestation 2024'!$J$17","v":300},{"$f":"'Attestation 2025'!$J$17","v":300}]
["Nombre de ménages accompagnés",{"$f":"'Attestation 2022'!$H$24","v":0},{"$f":"'Attestation 2023'!$H$24","v":0},{"$f":"'Attestation 2024'!$H$24","v":0},{"$f":"'Attestation 2025'!$H$24","v":0},{"$f":"SUM(B7:E7)","v":0}]
["Dépenses prévisionnelles de la collectivité pour la période",{"$f":"'Attestation 2022'!$H$8","v":0},{"$f":"'Attestation 2023'!$H$8","v":0},{"$f":"'Attestation 2024'!$H$8","v":0},{"$f":"'Attestation 2025'!$H$8","v":0},{"$f":"SUM(B8:E8)","v":0}]
["Total des dépenses engagées par la collectivité",{"$f":"'Attestation 2022'!$G$35","v":0},{"$f":"'Attestation 2023'!$G$35","v":0},{"$f":"'Attestation 2024'!$G$35","v":0},{"$f":"'Attestation 2025'!$G$35","v":0},{"$f":"SUM(B9:E9)","v":0}]
["Total des co-financements apportés par les CEE",{"$f":"'Attestation 2022'!$K$37","v":0},{"$f":"'Attestation 2023'!$K$37","v":0},{"$f":"'Attestation 2024'!$K$37","v":0},{"$f":"'Attestation 2025'!$K$37","v":0},{"$f":"SUM(B10:E10)","v":0}]
[null,"Actions",null,"Frais directs","Moyens humains","Total","Plafonds éligibles","Taux de co-financement CEE","Total plafonné","Total de co-financement CEE"]
[2022,"1. Animation territoriale",null,{"$f":"'Attestation 2022'!D29","v":0},{"$f":"'Attestation 2022'!E29","v":0},{"$f":"'Attestation 2022'!G29","v":0},{"$f":"'Attestation 2022'!H29","v":50000},{"$f":"'Attestation 2022'!I29","v":0.7},{"$f":"'Attestation 2022'!J29","v":35000},{"$f":"'Attestation 2022'!K29","v":0}]
[2023,null,null,{"$f":"'Attestation 2023'!D29","v":0},{"$f":"'Attestation 2023'!E29","v":0},{"$f":"'Attestation 2023'!G29","v":0},{"$f":"'Attestation 2023'!H29","v":25000},{"$f":"'Attestation 2023'!I29","v":0.7},{"$f":"'Attestation 2023'!J29","v":17500},{"$f":"'Attestation 2023'!K29","v":0}]
[2024,null,null,{"$f":"'Attestation 2024'!D29","v":0},{"$f":"'Attestation 2024'!E29","v":0},{"$f":"'Attestation 2024'!G29","v":0},{"$f":"'Attestation 2024'!H29","v":25000},{"$f":"'Attestation 2024'!I29","v":0.6},{"$f":"'Attestation 2024'!J29","v":15000},{"$f":"'Attestation 2024'!K29","v":0}]
[2025,null,null,{"$f":"'Attestation 2025'!D29","v":0},{"$f":"'Attestation 2025'!E29","v":0},{"$f":"'Attestation 2025'!G29","v":0},{"$f":"'Attestation 2025'!H29","v":25000},{"$f":"'Attestation 2025'!I29","v":0.6},{"$f":"'Attestation 2025'!J29","v":15000},{"$f":"'Attestation 2025'!K29","v":0}]
[]
[2022,"2. Diagnostics socio-techniques et soutien renforcé",null,{"$f":"'Attestation 2022'!D30","v":0},{"$f":"'Attestation 2022'!E30","v":0},{"$f":"'Attestation 2022'!G30","v":0},{"$f":"'Attestation 2022'!H30","v":0},{"$f":"'Attestation 2022'!I30","v":0.7},{"$f":"'Attestation 2022'!J30","v":0},{"$f":"'Attestation 2022'!K30","v":0}]
[2023,null,null,{"$f":"'Attestation 2023'!D30","v":0},{"$f":"'Attestation 2023'!E30","v":0},{"$f":"'Attestation 2023'!G30","v":0},{"$f":"'Attestation 2023'!H30","v":0},{"$f":"'Attestation 2023'!I30","v":0.7},{"$f":"'Attestation 2023'!J30","v":0},{"$f":"'Attestation 2023'!K30","v":0}]
[2024,null,null,{"$f":"'Attestation 2024'!D30","v":0},{"$f":"'Attestation 2024'!E30","v":0},{"$f":"'Attestation 2024'!G30","v":0},{"$f":"'Attestation 2024'!H30","v":0},{"$f":"'Attestation 2024'!I30","v":0.6},{"$f":"'Attestation 2024'!J30","v":0},{"$f":"'Attestation 2024'!K30","v":0}]
[2025,null,null,{"$f":"'Attestation 2025'!D30","v":0},{"$f":"'Attestation 2025'!E30","v":0},{"$f":"'Attestation 2025'!G30","v":0},{"$f":"'Attestation 2025'!H30","v":0},{"$f":"'Attestation 2025'!I30","v":0.6},{"$f":"'Attestation 2025'!J30","v":0},{"$f":"'Attestation 2025'!K30","v":0}]
[]
[2022,"3. Evaluation",null,{"$f":"'Attestation 2022'!D31","v":0},{"$f":"'Attestation 2022'!E31","v":0},{"$f":"'Attestation 2022'!G31","v":0},{"$f":"'Attestation 2022'!H31","v":20000},{"$f":"'Attestation 2022'!I31","v":0.7},{"$f":"'Attestation 2022'!J31","v":14000},{"$f":"'Attestation 2022'!K31","v":0}]
[2023,null,null,{"$f":"'Attestation 2023'!D31","v":0},{"$f":"'Attestation 2023'!E31","v":0},{"$f":"'Attestation 2023'!G31","v":0},{"$f":"'Attestation 2023'!H31","v":20000},{"$f":"'Attestation 2023'!I31","v":0.7},{"$f":"'Attestation 2023'!J31","v":14000},{"$f":"'Attestation 2023'!K31","v":0}]
[2024,null,null,{"$f":"'Attestation 2024'!D31","v":0},{"$f":"'Attestation 2024'!E31","v":0},{"$f":"'Attestation 2024'!G31","v":0},{"$f":"'Attestation 2024'!H31","v":20000},{"$f":"'Attestation 2024'!I31","v":0.6},{"$f":"'Attestation 2024'!J31","v":12000},{"$f":"'Attestation 2024'!K31","v":0}]
[2025,null,null,{"$f":"'Attestation 2025'!D31","v":0},{"$f":"'Attestation 2025'!E31","v":0},{"$f":"'Attestation 2025'!G31","v":0},{"$f":"'Attestation 2025'!H31","v":20000},{"$f":"'Attestation 2025'!I31","v":0.6},{"$f":"'Attestation 2025'!J31","v":12000},{"$f":"'Attestation 2025'!K31","v":0}]
[]
[2022,"4.1 Fomations",null,{"$f":"'Attestation 2022'!D32","v":0},{"$f":"'Attestation 2022'!E32","v":0},{"$f":"'Attestation 2022'!G32","v":0},{"$f":"'Attestation 2022'!H32","v":0},{"$f":"'Attestation 2022'!I32","v":0.75},{"$f":"'Attestation 2022'!J32","v":"N/A"},{"$f":"'Attestation 2022'!K32","v":0}]
[2023,null,null,{"$f":"'Attestation 2023'!D32","v":0},{"$f":"'Attestation 2023'!E32","v":0},{"$f":"'Attestation 2023'!G32","v":0},{"$f":"'Attestation 2023'!H32","v":0},{"$f":"'Attestation 2023'!I32","v":0.75},{"$f":"'Attestation 2023'!J32","v":"N/A"},{"$f":"'Attestation 2023'!K32","v":0}]
[2024,null,null,{"$f":"'Attestation 2024'!D32","v":0},{"$f":"'Attestation 2024'!E32","v":0},{"$f":"'Attestation 2024'!G32","v":0},{"$f":"'Attestation 2024'!H32","v":0},{"$f":"'Attestation 2024'!I32","v":0.75},{"$f":"'Attestation 2024'!J32","v":"N/A"},{"$f":"'Attestation 2024'!K32","v":0}]
[2025,null,null,{"$f":"'Attestation 2025'!D32","v":0},{"$f":"'Attestation 2025'!E32","v":0},{"$f":"'Attestation 2025'!G32","v":0},{"$f":"'Attestation 2025'!H32","v":0},{"$f":"'Attestation 2025'!I32","v":0.75},{"$f":"'Attestation 2025'!J32","v":"N/A"},{"$f":"'Attestation 2025'!K32","v":0}]
[]
[2022,"4.2 Accompagnement méthodologique",null,{"$f":"'Attestation 2022'!D33","v":0},{"$f":"'Attestation 2022'!E33","v":"-"},{"$f":"'Attestation 2022'!G33","v":0},{"$f":"'Attestation 2022'!H33","v":3333.33},{"$f":"'Attestation 2022'!I33","v":0.75},{"$f":"'Attestation 2022'!J33","v":2499.9974999999999},{"$f":"'Attestation 2022'!K33","v":0}]
[2023,null,null,{"$f":"'Attestation 2023'!D33","v":0},{"$f":"'Attestation 2023'!E33","v":"-"},{"$f":"'Attestation 2023'!G33","v":0},{"$f":"'Attestation 2023'!H33","v":3333.33},{"$f":"'Attestation 2023'!I33","v":0.75},{"$f":"'Attestation 2023'!J33","v":2499.9974999999999},{"$f":"'Attestation 2023'!K33","v":0}]
[2024,null,null,{"$f":"'Attestation 2024'!D33","v":0},{"$f":"'Attestation 2024'!E33","v":"-"},{"$f":"'Attestation 2024'!G33","v":0},{"$f":"'Attestation 2024'!H33","v":3333.33},{"$f":"'Attestation 2024'!I33","v":0.75},{"$f":"'Attestation 2024'!J33","v":2499.9974999999999},{"$f":"'Attestation 2024'!K33","v":0}]
[2025,null,null,{"$f":"'Attestation 2025'!D33","v":0},{"$f":"'Attestation 2025'!E33","v":"-"},{"$f":"'Attestation 2025'!G33","v":0},{"$f":"'Attestation 2025'!H33","v":3333.33},{"$f":"'Attestation 2025'!I33","v":0.75},{"$f":"'Attestation 2025'!J33","v":2499.9974999999999},{"$f":"'Attestation 2025'!K33","v":0}]

{"sheet":"Listes","index":10,"n_rows":10,"n_cols":13,"rows_kept":10,"cut":false,"hidden":false,"merged":[]}
["Année","Année dispositif","Forfait","Soutien renforcé supplémentaire","Type de collectivité","Coordination / Animation territoriale","Diagnostics socio-techniques et soutien renforcé","Evaluation","Formations","Accompagnement méthodologique","Coûts connexes","Type de coût","Intitule"]
[2022,"1ère année","OUI","NON","Conseil régional","Gestion et suivi administratif","Coordination des visites à domicile","Gestion et suivi administratif ","Frais de formation au diagnostic sociotechnique","Frais d'accompagnement méthodologique par un \"Ambassadeur du Slime\"",0.25,"FORFAITAIRE","TECHNICIEN / CONSEILLER / CHARGE DE MISSION"]
[2023,"2ème année","NON",0.1,"Conseil départemental","Actions de sensibilisation, animation et formation auprès des professionnels","Réalisation des visites à domicile","Réalisation de l'évaluation","Habilitation électrique",null,null,"REEL","TRAVAILLEUR SOCIAL"]
[2024,"3ème année",null,0.2,"Métropole","Communication","Recrutement des chargés de visites","Coordination et suivi opérationnel de l'évaluation","Autre (préciser à droite)",null,null,null,"CHARGE DE COMMUNICATION"]
[2025,"4ème année",null,0.3,"Autre type","Déplacements","Soutien renforcé (hors médiation)","Autre (préciser à droite)"]
[null,null,null,0.4,null,"Coordination et suivi opérationnel du dispositif","Déplacements"]
[null,null,null,0.5,null,"Autre (préciser à droite)","Équipements d'économies d'énergie"]
[null,null,null,0.6,null,null,"Équipements de mesure mis à disposition des chargés de visite"]
[null,null,null,0.7,null,null,"Réalisation des médiations"]
[null,null,null,0.8,null,null,"Autre (préciser à droite)"]